bitfinex/quotes_ETHUSD_20241003
["timestamp","ask_amount","ask_price","bid_price","bid_amount"]
[1727961553853,0.53205842,2338.5,2338.3,4.27647]
[1727961554056,0.53205842,2338.4,2338.3,4.27647]
[1727961554263,4.41887,2339.4,2338.6,4.27605]
[1727961554264,0.53205842,2339.1,2338.6,4.27605]
[1727961554457,4.2743,2339.6,2338.8,4.27566]
[1727961554771,4.27463,2339.4,2338.8,4.27566]
[1727961554926,0.53403709,2339.3,2338.8,4.27566]
[1727961555270,0.53403709,2339.2,2338.9,0.7526]
[1727961555417,0.53403709,2339.1,2338.9,0.7526]
[1727961555613,0.53403709,2339.0,2338.9,0.7526]
[1727961555821,0.53403709,2339.0,2338.7,4.27586]
[1727961556048,0.53403709,2338.9,2338.7,4.27586]
[1727961556233,0.53403709,2338.8,2338.7,4.27586]
[1727961556631,0.53403709,2338.8,2338.7,5.131046]
[1727961556838,0.53403709,2338.8,2338.7,8.681046]
[1727961557049,0.53403709,2338.8,2338.7,9.495246]
[1727961557262,4.27385,2339.9,2339.3,4.27474]
[1727961557939,4.27382,2339.9,2339.4,4.27459]
[1727961558131,0.1442,2340.2,2339.4,4.27447]
[1727961558329,4.2739,2339.8,2338.8,3.0]
[1727961558527,4.2739,2339.8,2339.1,4.27514]
[1727961558749,4.27362,2340.0,2339.4,4.27454]
[1727961558997,8.54727,2340.0,2339.4,4.27454]
[1727961559171,4.27362,2340.0,2339.3,4.27466]
[1727961559327,5.60144507,2340.2,2338.7,0.8142]
[1727961559523,4.27416,2339.7,2339.2,4.27493]
[1727961559763,4.27378,2339.9,2338.7,0.8142]
[1727961559970,4.27345,2340.1,2339.6,4.27414]
[1727961560174,8.54689,2340.1,2339.6,4.27414]
[1727961560324,0.1442,2340.2,2338.7,6.27144507]
[1727961560325,0.1442,2340.2,2339.2,4.27487]
[1727961560537,0.1442,2340.2,2338.8,4.27557]
[1727961560538,4.2744,2339.6,2338.8,4.27557]
[1727961560725,0.1442,2340.2,2338.9,0.06904963]
[1727961560726,4.27398,2339.8,2338.9,0.06904963]
[1727961560963,4.27398,2339.8,2339.1,8.55007]
[1727961561127,4.27332,2340.1,2339.6,4.27421]
[1727961561324,0.48712347,2340.1,2339.6,8.54828]
[1727961561624,4.27326,2340.2,2339.6,4.27408]
[1727961561835,8.54657,2340.2,2339.6,4.27407]
[1727961562081,5.45724507,2340.6,2339.4,0.784]
[1727961562367,5.45724507,2340.6,2338.6,7.27604]
[1727961562368,4.27425,2339.6,2339.0,5.05915]
[1727961562542,4.27459,2339.5,2339.0,5.05915]
[1727961562869,8.54948,2339.4,2338.9,4.2755]
[1727961563022,4.27472,2339.4,2338.9,4.2755]
[1727961563225,4.27389,2339.8,2338.6,0.7502]
[1727961563226,4.274,2339.8,2338.6,0.7502]
[1727961563463,4.274,2339.8,2339.1,4.27505]
[1727961563464,4.27424,2339.6,2339.1,4.27505]
[1727961563648,4.27424,2339.6,2339.1,8.55008]
[1727961563826,0.6781,2340.0,2339.2,0.08549074]
[1727961564027,4.27352,2340.0,2339.5,4.27437]
[1727961564472,4.27325,2340.2,2339.7,4.27404]
[1727961564626,4.27325,2340.2,2339.8,4.27384]
[1727961564829,4.27325,2340.2,2339.8,4.35930879]
[1727961565288,4.2726,2340.5,2340.0,4.27338]
[1727961565466,4.95005,2340.9,2340.4,4.27266]
[1727961565467,4.94997,2340.9,2340.4,4.27266]
[1727961565775,6.89537871,2341.3,2340.2,0.7941]
[1727961565776,0.6781,2341.3,2340.2,0.7941]
[1727961565933,4.27177,2341.0,2340.5,4.27244]
[1727961566330,4.27177,2341.0,2340.4,4.27272]
[1727961566331,4.27149,2341.1,2340.6,4.27239]
[1727961566531,4.27143,2341.2,2340.6,4.27239]
[1727961566727,4.27143,2341.2,2340.7,4.27222]
[1727961566971,0.6781,2341.3,2340.2,0.7941]
[1727961567174,4.94845,2341.8,2341.3,4.27112]
[1727961567373,4.2702,2341.9,2341.3,4.271]
[1727961567527,4.26978,2342.1,2341.6,4.27048]
[1727961567735,4.26978,2342.1,2341.5,4.2706]
[1727961567981,4.26978,2342.1,2341.6,4.3558161]
[1727961568181,0.1159587,2342.2,2341.7,4.2703]
[1727961568492,0.1159587,2342.2,2341.6,4.27049]
[1727961568636,4.27014,2341.9,2341.5,0.7929]
[1727961568831,0.1159587,2342.2,2341.1,4.27137]
[1727961568832,4.27073,2341.6,2341.1,5.07116]
[1727961569051,4.94781,2342.1,2339.9,4.38116156]
[1727961569052,5.45724507,2342.0,2340.7,5.07192]
[1727961569255,3.0,2341.9,2340.7,0.7998]
[1727961569457,3.0,2341.9,2340.8,4.27198]
[1727961569458,4.27099,2341.4,2340.8,4.27198]
[1727961569679,4.27099,2341.4,2340.7,0.7998]
[1727961569680,4.27099,2341.4,2340.7,5.07187]
[1727961569958,4.27114,2341.3,2340.7,5.07191]
[1727961570178,4.27053,2341.7,2340.9,4.27185]
[1727961570377,0.6781,2342.1,2340.7,0.7998]
[1727961570596,0.6781,2341.3,2340.3,0.7762]
[1727961570801,0.6781,2341.3,2340.3,5.04907]
[1727961570802,4.27207,2340.8,2340.3,5.04907]
[1727961571016,4.27223,2340.7,2340.3,0.7762]
[1727961571293,0.6781,2341.3,2340.3,0.7762]
[1727961571595,4.27155,2341.1,2340.5,4.27244]
[1727961571800,0.6781,2341.7,2340.3,5.04914]
[1727961571801,4.27189,2340.9,2340.3,5.04914]
[1727961571975,4.2717,2341.0,2340.5,4.27257]
[1727961572172,4.27137,2341.2,2340.5,4.27257]
[1727961572491,4.27137,2341.2,2340.6,4.27232]
[1727961572653,4.27137,2341.2,2340.5,4.27257]
[1727961572654,4.27106,2341.4,2340.7,4.2722]
[1727961572857,4.27126,2341.3,2340.7,4.27214]
[1727961573099,4.27151,2341.1,2340.6,4.27237]
[1727961573300,4.27151,2341.1,2340.5,4.27248]
[1727961573481,4.27151,2341.1,2340.5,8.54493]
[1727961573662,4.27126,2341.3,2340.3,0.7762]
[1727961573854,4.27077,2341.5,2340.5,4.27245]
[1727961574070,3.0,2341.5,2340.3,0.7762]
[1727961574287,4.27264,2340.5,2339.7,0.7903]
[1727961574475,4.27264,2340.5,2339.4,0.7903]
[1727961574476,4.27386,2339.9,2339.4,0.7903]
[1727961574685,4.27386,2339.9,2339.4,5.06488]
[1727961574899,4.27345,2340.1,2339.4,0.7903]
[1727961575060,4.27323,2340.2,2339.7,4.27396]
[1727961575259,4.27307,2340.3,2339.8,4.27376]
[1727961575458,4.27307,2340.3,2339.4,5.06486]
[1727961575459,4.27316,2340.2,2339.7,4.27404]
[1727961575905,4.27255,2340.6,2340.0,4.27348]
[1727961576109,4.27308,2340.3,2339.8,4.27383]
[1727961576402,4.27334,2340.1,2339.6,4.27411]
[1727961576648,5.86849696,2340.7,2340.0,4.27345]
[1727961576762,8.54432,2340.8,2339.8,0.7908]
[1727961576963,4.27251,2340.6,2340.0,4.27337]
[1727961577213,4.2725,2340.6,2340.0,4.27337]
[1727961577507,4.2725,2340.6,2340.1,4.27322]
[1727961577508,4.95051,2340.6,2340.1,4.27322]
[1727961577660,4.27213,2340.8,2340.2,4.27305]
[1727961577879,4.27214,2340.8,2340.3,4.27295]
[1727961578092,0.6781,2340.9,2339.8,0.7908]
[1727961578398,0.6781,2340.9,2339.3,4.27476]
[1727961578399,4.27281,2340.4,2339.3,0.7743]
[1727961578586,4.27251,2340.6,2340.1,4.27317]
[1727961578787,4.27216,2340.8,2340.2,0.08545308]
[1727961579103,4.27237,2340.7,2340.1,4.27326]
[1727961579305,4.27268,2340.5,2340.0,0.7743]
[1727961579510,0.6781,2340.9,2340.2,4.27313]
[1727961579511,4.27255,2340.6,2340.2,4.27313]
[1727961579663,0.6781,2340.9,2340.3,4.27284]
[1727961579867,4.27179,2341.0,2340.0,0.7743]
[1727961580208,4.27106,2341.4,2340.8,4.27203]
[1727961580360,4.27106,2341.4,2340.8,4.27195]
[1727961580361,4.27114,2341.3,2340.8,4.27195]
[1727961580557,0.6781,2341.5,2340.9,0.04171864]
[1727961580799,1.03239761,2342.3,2340.9,4.27173]
[1727961580800,4.27095,2341.4,2340.9,4.27173]
[1727961581003,4.27095,2341.4,2340.9,8.54348]
[1727961581209,4.94815,2341.9,2340.5,4.27247]
[1727961581210,4.27023,2341.8,2340.5,4.27247]
[1727961581357,4.27087,2341.5,2341.1,4.27148]
[1727961581561,4.27087,2341.5,2341.0,4.27157]
[1727961581864,4.27087,2341.5,2340.6,5.08955]
[1727961581865,4.27063,2341.6,2340.8,4.27191]
[1727961582059,4.27084,2341.5,2340.6,5.0895]
[1727961582362,4.27023,2341.8,2340.3,5.03356]
[1727961582363,4.27213,2340.8,2340.3,5.03356]
[1727961582565,4.27213,2340.8,2340.3,0.7607]
[1727961582566,4.2724,2340.6,2340.3,0.7607]
[1727961582915,4.2725,2340.6,2340.0,4.27348]
[1727961583070,4.27273,2340.5,2340.0,4.27348]
[1727961583271,0.6781,2341.2,2339.9,0.8185]
[1727961583572,4.2715,2341.1,2340.1,4.27321]
[1727961583771,4.27187,2340.9,2340.4,4.27268]
[1727961584101,4.2715,2341.1,2340.7,4.2721]
[1727961584310,4.27097,2341.4,2340.9,4.27185]
[1727961584600,4.27104,2341.4,2340.9,4.27177]
[1727961584964,0.6781,2341.6,2341.1,4.27148]
[1727961584965,4.27078,2341.5,2341.1,4.27148]
[1727961585169,4.27068,2341.6,2341.1,4.27148]
[1727961585365,4.27031,2341.8,2341.2,4.2713]
[1727961585600,0.6781,2342.0,2341.3,4.27102]
[1727961585804,4.27029,2341.8,2341.3,4.35642925]
[1727961586041,4.27076,2341.5,2341.1,4.27141]
[1727961586179,4.2714,2341.2,2340.7,5.04169]
[1727961586379,4.27063,2341.6,2340.8,4.27204]
[1727961586578,4.27063,2341.6,2340.7,0.7695]
[1727961586579,4.27141,2341.2,2340.7,0.7695]
[1727961586900,4.27149,2341.1,2340.7,0.7695]
[1727961587111,4.27161,2341.1,2340.7,5.04172]
[1727961587617,6.30659457,2342.0,2340.9,4.27178]
[1727961587618,4.27111,2341.4,2340.9,4.27178]
[1727961587913,4.27121,2341.3,2340.8,4.27189]
[1727961588262,4.27121,2341.3,2340.8,8.54383]
[1727961588522,4.27108,2341.4,2340.9,4.27173]
[1727961588523,4.27098,2341.4,2340.9,4.27173]
[1727961588670,4.27098,2341.4,2340.9,8.5435]
[1727961589024,4.27092,2341.5,2341.0,4.27167]
[1727961589314,4.27051,2341.7,2341.1,4.27148]
[1727961589469,4.27059,2341.6,2341.1,4.27148]
[1727961589674,4.27079,2341.5,2341.1,4.27148]
[1727961590453,4.27079,2341.5,2340.7,0.7695]
[1727961590454,3.6781,2342.0,2340.7,0.7695]
[1727961590566,8.5402,2341.9,2341.4,5.02715]
[1727961590768,4.27004,2341.9,2341.5,0.08540401]
[1727961591119,4.2703,2341.8,2341.5,0.08540401]
[1727961591268,4.27004,2341.9,2341.5,0.08540401]
[1727961591269,8.54017,2341.9,2341.5,0.08540401]
[1727961591469,4.27004,2341.9,2341.5,0.08540401]
[1727961591675,4.27011,2341.9,2341.5,4.35598401]
[1727961591922,4.27011,2341.9,2341.5,0.08540401]
[1727961592128,4.27022,2341.8,2341.4,0.7563]
[1727961592488,4.26982,2342.1,2341.6,4.27049]
[1727961592682,4.3854787,2342.2,2341.8,4.27014]
[1727961592885,4.3854787,2342.2,2341.7,4.27023]
[1727961592886,0.1159587,2342.2,2341.7,4.27023]
[1727961593098,4.26971,2342.1,2341.7,4.27023]
[1727961593321,0.1159587,2342.2,2341.7,4.27023]
[1727961593616,0.1159587,2342.2,2341.4,0.7563]
[1727961593617,4.2699,2342.0,2341.4,0.7563]
[1727961593929,4.2699,2342.0,2341.6,4.27057]
[1727961594132,4.3855487,2342.2,2341.7,4.27034]
[1727961594416,4.3855487,2342.2,2341.1,5.08822]
[1727961594417,4.27069,2341.6,2341.1,5.08822]
[1727961594716,4.27059,2341.6,2341.1,5.0883]
[1727961595071,4.27033,2341.8,2341.2,4.27124]
[1727961595274,4.27033,2341.8,2341.3,4.27109]
[1727961595567,4.26999,2342.0,2341.5,4.27062]
[1727961595770,7.2698,2342.1,2341.6,4.27044]
[1727961595985,4.2698,2342.1,2341.6,4.27044]
[1727961596182,4.3855887,2342.2,2341.9,4.27003]
[1727961596183,0.1159587,2342.2,2341.9,4.27003]
[1727961596416,0.1159587,2342.2,2342.1,4.26967]
[1727961596624,0.1159587,2342.2,2342.1,4.3064776]
[1727961596803,0.1159587,2342.2,2342.1,8.17614758]
[1727961597007,0.1159587,2342.2,2342.1,30.424068]
[1727961597217,1.59609696,2343.0,2342.9,5.08339]
[1727961597519,4.26658,2343.8,2342.9,5.08339]
[1727961597520,1.59609696,2343.3,2342.9,0.8153]
[1727961597723,1.59609696,2343.5,2342.9,0.8153]
[1727961597869,1.59609696,2343.5,2342.3,5.45724507]
[1727961597870,4.2677,2343.2,2342.6,0.8153]
[1727961598072,4.26712,2343.5,2342.3,0.8153]
[1727961598073,4.26866,2342.7,2342.3,0.8153]
[1727961598313,4.26884,2342.6,2342.3,0.8153]
[1727961598519,4.26866,2342.7,2342.3,0.8153]
[1727961598715,1.59609696,2343.2,2342.3,0.8153]
[1727961598716,4.26854,2342.8,2342.3,0.8153]
[1727961598887,4.26903,2342.5,2342.3,0.8153]
[1727961599089,4.26843,2342.8,2342.1,4.26962]
[1727961599288,7.2679,2343.1,2342.1,4.26962]
[1727961599289,4.26871,2342.7,2342.1,4.26962]
[1727961599519,4.26905,2342.5,2342.0,0.7643]
[1727961599701,7.2679,2343.1,2342.0,0.7643]
[1727961599913,4.26833,2342.9,2342.3,4.26918]
[1727961600422,0.794,2343.3,2342.6,4.2686]
[1727961600622,4.26795,2343.1,2342.6,4.2686]
[1727961600822,5.06163,2343.3,2342.6,4.2686]
[1727961600823,4.26767,2343.2,2342.8,0.7511]
[1727961601028,4.26725,2343.5,2343.0,4.268]
[1727961601175,4.26725,2343.5,2342.9,0.08536058]
[1727961601176,4.26787,2343.1,2342.8,0.7511]
[1727961601521,5.86312696,2343.6,2342.1,3.0]
[1727961601522,4.26879,2342.6,2342.1,5.02074]
[1727961601673,5.0447,2342.8,2342.2,4.26945]
[1727961601874,5.0447,2342.8,2342.1,5.02074]
[1727961601875,4.26859,2342.7,2342.1,5.02074]
[1727961602077,4.26859,2342.7,2342.2,4.26935]
[1727961602296,5.06188,2343.1,2342.1,5.02066]
[1727961602297,0.55,2342.3,2342.1,0.7511]
[1727961602504,0.55,2342.3,2342.1,5.0206]
[1727961602731,4.26886,2342.6,2342.1,5.0206]
[1727961602732,0.55,2342.5,2342.1,0.7511]
[1727961603042,0.55,2342.1,2341.7,4.27026]
[1727961603346,0.55,2341.9,2341.5,5.07735]
[1727961603511,0.55,2342.2,2341.8,4.27021]
[1727961603709,5.04235,2342.4,2341.7,4.27025]
[1727961603710,0.55,2342.1,2341.7,4.27025]
[1727961603936,7.36,2342.6,2341.8,0.08538818]
[1727961604112,4.26792,2343.1,2341.8,0.08538818]
[1727961604113,8.1331,2343.2,2342.7,4.26845]
[1727961604442,8.1331,2343.2,2342.0,9.72708507]
[1727961604443,5.04032,2343.5,2343.1,4.26784]
[1727961604649,5.04032,2343.5,2343.0,0.08534834]
[1727961604650,4.26722,2343.5,2343.0,0.08534834]
[1727961604799,4.26722,2343.5,2343.0,4.35336953]
[1727961604995,4.26688,2343.7,2343.0,0.08534953]
[1727961605195,4.26688,2343.7,2342.6,0.8067]
[1727961605196,4.26651,2343.9,2343.3,5.09373]
[1727961605426,4.26621,2344.0,2343.4,0.08533609]
[1727961605607,4.26621,2344.0,2343.3,5.603053]
[1727961605608,4.26621,2344.0,2343.5,8.53398]
[1727961605806,4.26621,2344.0,2343.6,4.33337815]
[1727961606017,5.05968,2344.3,2343.7,4.26675]
[1727961606191,4.26568,2344.3,2343.8,4.26646]
[1727961606395,5.1751887,2344.6,2344.1,4.26598]
[1727961606607,5.1751887,2344.6,2344.0,5.05865]
[1727961606608,4.3811787,2344.6,2344.0,5.05865]
[1727961606839,0.1159587,2344.6,2344.2,4.26583]
[1727961607021,0.1159587,2344.6,2344.4,4.26546]
[1727961607227,0.1159587,2344.6,2344.5,4.35059798]
[1727961607439,0.1159587,2344.6,2344.5,8.14319329]
[1727961607752,0.1159587,2344.6,2344.5,8.0579]
[1727961607953,0.1159587,2344.6,2344.5,9.290236]
[1727961608244,9.71965507,2346.1,2344.5,9.290236]
[1727961608245,4.26264,2346.0,2344.5,9.290236]
[1727961608450,4.26264,2346.0,2345.3,5.05631]
[1727961608669,4.26264,2346.0,2345.5,4.26346]
[1727961608798,5.1552387,2346.9,2345.6,3.0]
[1727961608996,4.26178,2346.5,2346.0,0.7713]
[1727961609195,8.52355,2346.5,2346.0,0.7713]
[1727961609396,4.26177,2346.5,2346.0,0.7713]
[1727961609594,4.26273,2346.0,2345.6,0.7713]
[1727961609857,4.26366,2345.5,2345.2,0.8222]
[1727961610047,4.26366,2345.5,2344.8,0.8222]
[1727961610249,5.0501,2346.1,2344.8,5.08678]
[1727961610448,0.7876,2346.1,2344.8,0.8222]
[1727961610648,4.2633,2345.6,2345.0,4.26425]
[1727961610799,4.2633,2345.6,2345.0,8.5285]
[1727961611001,4.26267,2346.0,2345.2,4.2639]
[1727961611208,4.26267,2346.0,2345.0,0.93507]
[1727961611209,4.26197,2346.4,2345.3,0.08526068]
[1727961611456,0.7876,2346.5,2346.1,4.26223]
[1727961611742,4.3769287,2346.9,2346.2,0.08522976]
[1727961611951,4.3769287,2346.9,2346.3,4.26193]
[1727961612102,4.3769287,2346.9,2346.4,0.08522725]
[1727961612103,0.1159587,2346.9,2346.4,0.08522725]
[1727961612306,0.1159587,2346.9,2346.8,4.26112]
[1727961612555,4.25977,2347.6,2346.8,4.186312]
[1727961612706,4.25804,2348.5,2347.9,4.25912]
[1727961612905,5.06298,2349.0,2347.9,4.259]
[1727961612906,4.25776,2348.7,2347.9,4.259]
[1727961613106,0.44597566,2348.4,2348.0,4.34406487]
[1727961613646,4.25776,2348.7,2348.0,4.2589]
[1727961613857,4.25781,2348.7,2348.1,4.25871]
[1727961614058,4.25781,2348.7,2347.9,4.25904]
[1727961614240,4.25737,2348.9,2347.9,4.25904]
[1727961614241,4.25737,2348.9,2348.1,4.25862]
[1727961614576,4.3727787,2349.2,2348.5,4.25788]
[1727961614856,4.25749,2348.8,2348.2,0.7602]
[1727961615036,4.25718,2349.0,2348.3,4.25827]
[1727961615248,4.3727587,2349.2,2348.4,4.25818]
[1727961615249,4.3728087,2349.2,2348.4,4.25818]
[1727961615577,4.25834,2348.4,2347.8,0.829]
[1727961615721,0.7589,2348.3,2347.2,5.45724507]
[1727961615922,0.7589,2348.3,2347.0,0.8108]
[1727961616236,8.51879,2347.8,2347.0,9.33215]
[1727961616564,4.80964,2347.7,2347.0,0.8108]
[1727961616777,4.80987,2347.5,2347.0,0.8108]
[1727961616956,0.55,2347.5,2347.0,0.8108]
[1727961617153,4.25938,2347.8,2347.0,0.8108]
[1727961617154,0.55,2347.7,2347.0,0.8108]
[1727961617456,9.71532507,2348.5,2347.0,0.8108]
[1727961617457,0.772,2348.4,2347.3,5.45724507]
[1727961617639,4.25776,2348.7,2347.7,0.8003]
[1727961617846,4.25742,2348.9,2348.1,4.25863]
[1727961618046,4.25742,2348.9,2347.7,6.25754507]
[1727961618047,8.51567,2348.7,2348.0,3.0]
[1727961618376,5.1586787,2349.2,2347.7,0.8003]
[1727961618377,4.2575,2348.8,2347.7,0.8003]
[1727961618523,0.7859,2348.9,2347.2,5.06068]
[1727961618725,5.45724507,2349.0,2347.3,4.26019]
[1727961618726,4.2589,2348.1,2347.3,4.26019]
[1727961618940,4.25854,2348.3,2347.5,4.25973]
[1727961619139,0.7859,2348.8,2346.9,5.45724507]
[1727961619140,0.7859,2348.8,2347.8,0.8003]
[1727961619369,0.9018587,2349.2,2347.8,0.8003]
[1727961619678,4.25714,2349.0,2348.3,4.25827]
[1727961619970,0.1159587,2349.2,2348.3,4.25827]
[1727961619971,0.1159587,2349.2,2348.7,4.25755]
[1727961620273,0.1159587,2349.2,2348.8,0.08513523]
[1727961620479,0.1159587,2349.2,2349.1,7.25694]
[1727961620766,0.1159587,2349.2,2349.1,8.14235124]
[1727961620938,0.1159587,2349.2,2349.1,8.05724]
[1727961621134,0.1159587,2349.2,2349.1,9.83438551]
[1727961621479,4.25394,2350.8,2349.8,0.7712]
[1727961621480,4.25416,2350.7,2349.8,0.7712]
[1727961621702,0.7632,2351.2,2349.8,5.02679]
[1727961621852,4.25363,2351.0,2350.3,4.25463]
[1727961622382,4.25397,2350.8,2350.0,4.2552]
[1727961622541,4.25397,2350.8,2350.2,4.25494]
[1727961622733,0.44516403,2351.5,2350.3,0.7601]
[1727961622941,0.44516403,2351.5,2350.9,4.25368]
[1727961622942,4.73523673,2351.5,2350.9,4.25368]
[1727961623186,0.0373527,2351.5,2351.0,4.29663685]
[1727961623487,0.0373527,2351.5,2351.0,0.8289]
[1727961623649,0.0373527,2351.5,2351.0,5.0824]
[1727961623862,0.0373527,2351.5,2351.0,0.8289]
[1727961624070,4.25416,2350.7,2350.1,4.25511]
[1727961624241,0.7504,2351.4,2349.5,3.0]
[1727961624242,4.25339,2351.1,2349.5,3.0]
[1727961624438,4.25425,2350.6,2350.0,4.25514]
[1727961624677,4.25389,2350.8,2350.1,4.25502]
[1727961624883,0.0373527,2350.8,2350.2,0.7621]
[1727961625087,0.0373527,2350.8,2350.5,4.25438]
[1727961625270,0.0373527,2350.8,2350.6,4.2541]
[1727961625793,0.0373527,2350.8,2350.4,4.25449]
[1727961625996,4.2912327,2350.8,2350.2,0.7621]
[1727961626202,0.0373527,2350.8,2350.2,0.7621]
[1727961626498,4.2913227,2350.8,2350.2,5.01688]
[1727961626798,0.0373527,2350.8,2350.3,4.25476]
[1727961627008,0.0373527,2350.8,2350.5,4.25441]
[1727961627299,0.0373527,2350.8,2350.7,4.25405]
[1727961627468,0.0373527,2350.8,2350.7,8.885076]
[1727961627672,4.25139,2352.2,2350.7,8.885076]
[1727961627874,2.07390983,2353.9,2352.2,4.25133]
[1727961627875,4.25031,2352.8,2352.2,4.25133]
[1727961628114,4.25031,2352.8,2351.8,3.7808]
[1727961628115,0.7882,2353.4,2352.4,4.25087]
[1727961628327,5.03749,2353.4,2352.4,0.8502]
[1727961628469,1.23323447,2353.4,2352.7,4.25028]
[1727961628819,4.24946,2353.3,2352.7,0.7808]
[1727961628983,4.25018,2352.9,2352.2,0.771]
[1727961629388,4.25018,2352.9,2352.1,4.25139]
[1727961629389,4.25069,2352.6,2351.8,0.771]
[1727961629583,0.8124,2353.0,2351.8,0.771]
[1727961629584,4.25007,2352.9,2351.8,0.771]
[1727961629919,0.8124,2352.3,2350.8,0.771]
[1727961630066,4.25191,2351.9,2350.8,0.771]
[1727961630270,4.25317,2351.2,2350.8,0.771]
[1727961630471,0.55,2351.3,2350.8,0.771]
[1727961631266,0.55,2351.5,2350.8,0.771]
[1727961631513,0.55,2351.5,2350.8,5.02485]
[1727961631723,0.55,2351.2,2350.8,0.771]
[1727961631874,0.55,2351.2,2350.9,0.05845667]
[1727961632583,4.8035,2351.0,2350.9,0.05845667]
[1727961632912,4.25432,2350.6,2350.0,0.7958]
[1727961633133,0.55,2350.5,2350.2,4.25493]
[1727961633343,0.55,2350.5,2350.4,4.25459]
[1727961634364,0.55,2350.5,2350.3,4.25477]
[1727961634678,4.25365,2351.0,2350.0,0.7958]
[1727961634679,0.55,2350.7,2350.0,0.7958]
[1727961634883,0.55,2350.7,2350.3,4.25466]
[1727961635083,0.55,2350.7,2350.1,4.25501]
[1727961635335,4.25389,2350.8,2350.0,0.7958]
[1727961635624,4.25311,2351.3,2350.6,4.25423]
[1727961635793,4.25309,2351.3,2350.6,4.25413]
[1727961635983,4.25354,2351.0,2350.2,4.25483]
[1727961636184,4.25354,2351.0,2350.0,0.7958]
[1727961636185,4.25423,2350.6,2350.0,0.7958]
[1727961636424,0.7753,2351.4,2349.5,0.8071]
[1727961636610,4.25425,2350.6,2350.1,3.0]
[1727961636954,4.25395,2350.8,2350.2,4.25494]
[1727961637174,4.80349,2351.1,2350.4,4.25442]
[1727961637323,0.55,2350.7,2350.3,3.0]
[1727961637667,0.55,2350.9,2350.2,0.8071]
[1727961637959,0.55,2350.7,2350.2,5.06195]
[1727961638160,0.55,2350.7,2350.3,0.05717291]
[1727961638456,0.55,2350.7,2349.9,3.0]
[1727961638457,0.55,2350.2,2349.9,4.25541]
[1727961638661,0.55,2350.2,2350.1,4.25513]
[1727961638878,8.02815,2351.4,2350.1,4.25513]
[1727961638879,0.55,2351.2,2350.7,4.25392]
[1727961639021,0.55,2351.2,2350.5,4.25423]
[1727961639022,4.80327,2351.2,2350.5,4.25423]
[1727961639221,0.55,2350.9,2350.5,4.25423]
[1727961639676,0.55,2350.9,2350.4,7.25447]
[1727961639990,0.55,2350.9,2350.5,4.2543]
[1727961640134,4.25372,2350.9,2350.4,4.25459]
[1727961640337,0.55,2351.0,2350.5,4.25436]
[1727961640338,4.8036,2351.0,2350.5,4.25436]
[1727961640695,0.55,2351.1,2350.7,4.25404]
[1727961641180,0.55,2351.1,2350.7,4.25405]
[1727961641337,4.80333,2351.1,2350.7,4.25395]
[1727961641534,0.7753,2351.4,2350.1,4.25501]
[1727961641535,4.25432,2350.6,2350.1,4.25501]
[1727961641775,4.25432,2350.6,2349.7,3.0]
[1727961641776,4.80445,2350.5,2350.0,4.25531]
[1727961641990,0.55,2350.5,2349.9,4.25536]
[1727961642278,4.80534,2350.0,2349.5,4.25613]
[1727961642581,4.80527,2350.1,2349.5,4.25611]
[1727961642728,4.80527,2350.1,2349.1,4.25688]
[1727961642729,0.55,2350.2,2349.7,8.5115]
[1727961642933,0.55,2350.2,2349.0,0.8212]
[1727961643169,0.55,2349.6,2349.1,4.25684]
[1727961643471,0.55,2349.6,2348.4,4.25813]
[1727961643472,0.55,2349.3,2348.4,4.25819]
[1727961643688,0.55,2349.3,2349.2,4.25676]
[1727961643835,0.55,2349.3,2349.1,5.03351]
[1727961644029,0.7885,2350.0,2349.1,5.03351]
[1727961644030,0.55,2349.4,2349.1,5.03351]
[1727961644607,4.8062,2349.6,2349.1,5.03346]
[1727961644907,4.80616,2349.6,2348.7,0.7766]
[1727961645107,0.55,2349.6,2349.2,4.25673]
[1727961645312,0.55,2349.4,2349.0,4.25698]
[1727961645615,4.80649,2349.4,2348.9,7.25722]
[1727961645831,0.55,2349.4,2348.9,3.0]
[1727961647498,0.55,2349.3,2348.6,4.2577]
[1727961647666,0.55,2349.1,2348.6,4.2577]
[1727961648022,0.55,2348.9,2348.5,4.25789]
[1727961648186,0.55,2348.7,2348.3,4.25831]
[1727961648470,0.55,2348.7,2348.6,4.25785]
[1727961649172,0.55,2348.9,2348.5,8.51595]
[1727961649374,0.55,2349.2,2348.3,1.185331]
[1727961649569,0.55,2349.0,2348.5,3.0]
[1727961649873,0.55,2349.0,2348.4,8.51621]
[1727961649874,0.55,2348.8,2348.4,4.2581]
[1727961650079,0.55,2348.8,2348.7,4.25767]
[1727961650610,0.55,2348.8,2348.4,4.25816]
[1727961650908,0.55,2348.8,2348.7,4.25767]
[1727961651070,5.01579,2349.8,2349.2,4.25663]
[1727961651271,4.25597,2349.7,2349.2,4.25663]
[1727961651524,4.25631,2349.5,2349.0,4.25697]
[1727961652069,4.25613,2349.6,2349.0,4.25697]
[1727961652269,4.25709,2349.1,2348.2,0.8324]
[1727961652519,4.25594,2349.7,2348.9,4.25716]
[1727961652520,4.25591,2349.7,2348.9,4.25716]
[1727961652808,4.25591,2349.7,2349.2,4.25667]
[1727961652980,0.55,2349.7,2349.0,0.03771931]
[1727961653200,0.55,2349.3,2349.0,4.25699]
[1727961653511,0.55,2349.3,2349.1,0.03771931]
[1727961653512,4.80676,2349.2,2349.1,0.03771931]
[1727961653734,0.55,2349.2,2349.1,0.03771931]